[Event "HUN-ch U8-U18 2019"]
[Site "Balatonlelle"]
[Date "2019.06.24"]
[Round "5.25"]
[White "Kossela, Peter"]
[Black "Szabo, Marton Nandor"]
[Result "0-1"]
[ECO "B40"]
[WhiteElo "1480"]
[BlackElo "1665"]
[Annotator "NA"]
[PlyCount "118"]
[EventDate "2019.06.21"]
[EventType "swiss"]
[EventCountry "HUN"]
[SourceTitle "playchess.com"]
[Source "ChessBase"]
[SourceQuality "1"]
[TimeControl "40/5400+30:1800+30"]

1. e4 {[%emt 0:00:02]} c5 {[%emt 0:00:24]} 2. Nf3 {[%emt 0:00:06]} e6 {[%emt 0:00:08]} 3. c4 {[%emt 0:01:04]} Nc6 {[%emt 0:00:26]} 4. Nc3 {[%emt 0:06:21]} e5 {[%emt 0:00:12]} 5. d3 {[%emt 0:02:01]} d6 {[%emt 0:00:14]} 6. Be2 {[%emt 0:01:39]} g6 {[%emt 0:01:01]} 7. O-O {[%emt 0:00:15]} Bg7 {[%emt 0:00:11]} 8. h3 {[%emt 0:03:13]} Nge7 {[%emt 0:01:28]} 9. Be3 {[%emt 0:01:17]} O-O {[%emt 0:01:39]} 10. Qd2 {[%emt 0:00:56]} f5 {[%emt 0:00:23]} 11. Bh6 {[%emt 0:05:06]} f4 {[%emt 0:11:30]} 12. Bxg7 {[%emt 0:01:22]} Kxg7 {[%emt 0:02:06]} 13. a3 {[%emt 0:04:10]} Be6 {[%emt 0:07:34]} 14. Ng5 {[%emt 0:05:36]} Bg8 {[%emt 0:04:08]} 15. Bg4 {[%emt 0:01:05]} Nd4 {[%emt 0:00:36]} 16. Bd1 {[%emt 0:03:23]} Nec6 {[%emt 0:01:09]} 17. Nf3 {[%emt 0:02:08]} Nxf3+ {[%emt 0:00:07]} 18. Bxf3 {[%emt 0:00:25]} Nd4 {[%emt 0:00:05]} 19. Bd1 {[%emt 0:01:05]} f3 {[%emt 0:01:14]} 20. g3 {[%emt 0:03:13]} Qd7 {[%emt 0:00:33]} 21. Kh2 {[%emt 0:02:08]} Be6 {[%emt 0:00:27]} 22. h4 {[%emt 0:03:00]} Bh3 {[%emt 0:00:16]} 23. Rg1 {[%emt 0:01:19]} Bg2 {[%emt 0:00:07]} 24. Rxg2 {[%emt 0:00:19]} fxg2 25. Kxg2 {[%emt 0:01:01]} Rf7 {[%emt 0:04:15]} 26. Ba4 {[%emt 0:03:34]} Qg4 {[%emt 0:00:47]} 27. Bd1 {[%emt 0:05:00]} Qe6 {[%emt 0:01:02]} 28. Be2 {[%emt 0:06:44]} Nb3 {[%emt 0:00:26]} 29. Qd1 {[%emt 0:00:30]} Nxa1 {[%emt 0:00:02]} 30. Qxa1 {[%emt 0:00:23]} Raf8 {[%emt 0:00:39]} 31. Nd1 {[%emt 0:00:21]} Rf6 {[%emt 0:00:22]} 32. Qc1 {[%emt 0:03:04]} Qf7 {[%emt 0:00:22]} 33. Qe3 {[%emt 0:00:07]} Qc7 {[%emt 0:04:05]} 34. f3 {[%emt 0:02:22]} Qb6 {[%emt 0:01:33]} 35. Qd2 {[%emt 0:01:09]} Rb8 {[%emt 0:03:50]} 36. Ne3 {[%emt 0:00:59]} Qb3 {[%emt 0:02:20]} 37. Bd1 {[%emt 0:00:43]} Qa2 {[%emt 0:05:52]} 38. Qc1 {[%emt 0:01:27]} b5 {[%emt 0:03:19]} 39. Nd5 {[%emt 0:01:42]} bxc4 {[%emt 0:01:03]} 40. Nxf6 {[%emt 0:00:00]} Qxb2+ {[%emt 0:00:00]} 41. Qxb2 {[%emt 0:02:23]} Rxb2+ {[%emt 0:01:23]} 42. Kf1 {[%emt 0:00:19]} Kxf6 {[%emt 0:00:02]} 43. dxc4 {[%emt 0:00:22]} Ra2 {[%emt 0:00:34]} 44. a4 {[%emt 0:02:04]} Rb2 {[%emt 0:00:06]} 45. f4 {[%emt 0:01:19]} Rb4 {[%emt 0:00:13]} 46. fxe5+ {[%emt 0:00:37]} Kxe5 {[%emt 0:00:11]} 47. h5 {[%emt 0:00:58]} Rxc4 {[%emt 0:00:24]} 48. Bb3 {[%emt 0:00:26]} Rxe4 {[%emt 0:00:14]} 49. hxg6 {[%emt 0:00:49]} hxg6 {[%emt 0:00:07]} 50. Bc2 {[%emt 0:00:15]} c4 {[%emt 0:00:07]} 51. Bxe4 {[%emt 0:00:14]} Kxe4 {[%emt 0:00:07]} 52. Ke2 {[%emt 0:00:07]} d5 {[%emt 0:00:08]} 53. a5 {[%emt 0:00:09]} d4 {[%emt 0:00:05]} 54. a6 {[%emt 0:00:05]} d3+ {[%emt 0:00:23]} 55. Kd2 {[%emt 0:00:10]} Kd4 {[%emt 0:00:05]} 56. g4 {[%emt 0:00:09]} c3+ {[%emt 0:00:04]} 57. Kd1 {[%emt 0:00:16]} d2 {[%emt 0:00:21]} 58. g5 {[%emt 0:00:08]} Ke4 {[%emt 0:00:08]} 59. Ke2 {[%emt 0:00:19]} Kf5 {[%emt 0:00:11]} 0-1

[Event "HUN-ch U8-U18 2019"]
[Site "Balatonlelle"]
[Date "2019.06.24"]
[Round "5.26"]
[White "Turcsanyi, Vince Gergo"]
[Black "Marjanovic, Alex"]
[Result "1-0"]
[ECO "C76"]
[WhiteElo "1816"]
[BlackElo "1629"]
[Annotator "NA"]
[PlyCount "59"]
[EventDate "2019.06.21"]
[EventType "swiss"]
[EventCountry "HUN"]
[SourceTitle "playchess.com"]
[Source "ChessBase"]
[SourceQuality "1"]
[TimeControl "40/5400+30:1800+30"]

1. e4 {[%emt 0:00:01]} e5 {[%emt 0:00:08]} 2. Nf3 {[%emt 0:00:07]} Nc6 {[%emt 0:00:12]} 3. Bb5 {[%emt 0:00:16]} g6 {[%emt 0:00:33]} 4. c3 {[%emt 0:02:11]} a6 {[%emt 0:00:17]} 5. Ba4 {[%emt 0:00:14]} d6 {[%emt 0:00:34]} 6. d4 {[%emt 0:02:21]} Bd7 {[%emt 0:00:40]} 7. O-O {[%emt 0:00:45]} Bg7 {[%emt 0:00:36]} 8. Bg5 {[%emt 0:03:56]} Nf6 {[%emt 0:00:14]} 9. Re1 {[%emt 0:02:39]} h6 {[%emt 0:01:49]} 10. Bd2 {[%emt 0:04:29]} O-O {[%emt 0:07:27]} 11. d5 {[%emt 0:07:31]} Ne7 {[%emt 0:01:40]} 12. Bxd7 {[%emt 0:00:49]} Qxd7 {[%emt 0:00:16]} 13. c4 {[%emt 0:00:39]} Nh7 {[%emt 0:04:17]} 14. Qc1 {[%emt 0:04:19]} g5 {[%emt 0:10:17]} 15. h3 {[%emt 0:06:40]} f5 {[%emt 0:03:00]} 16. exf5 {[%emt 0:09:45]} Qxf5 {[%emt 0:02:04]} 17. Nc3 {[%emt 0:06:54]} Ng6 {[%emt 0:07:26]} 18. Ne4 {[%emt 0:07:58]} Nf6 {[%emt 0:01:49]} 19. Ng3 {[%emt 0:02:05]} Qd7 {[%emt 0:01:12]} 20. Qc2 {[%emt 0:01:42]} Nf4 {[%emt 0:02:47]} 21. Bxf4 {[%emt 0:05:29]} exf4 {[%emt 0:02:24]} 22. Nf5 {[%emt 0:01:03]} Rae8 {[%emt 0:01:47]} 23. N3d4 {[%emt 0:01:42]} Nh5 {[%emt 0:10:31]} 24. Ne6 {[%emt 0:02:15]} Rf6 {[%emt 0:00:16]} 25. Rad1 {[%emt 0:16:30]} Qf7 {[%emt 0:09:44]} 26. Nexg7 {[%emt 0:04:54]} Rxe1+ {[%emt 0:01:10]} 27. Rxe1 {[%emt 0:00:11]} Nxg7 {[%emt 0:00:07]} 28. Re7 {[%emt 0:00:36]} Rxf5 {[%emt 0:04:36]} 29. Rxf7 {[%emt 0:00:09]} Rxf7 {[%emt 0:00:08]} 30. Qg6 1-0

[Event "HUN-ch U8-U18 2019"]
[Site "Balatonlelle"]
[Date "2019.06.24"]
[Round "5.27"]
[White "Foldes, Marton Gabor"]
[Black "Giang, Tran Nam"]
[Result "1-0"]
[ECO "B42"]
[WhiteElo "1653"]
[BlackElo "2008"]
[Annotator "NA"]
[PlyCount "51"]
[EventDate "2019.06.21"]
[EventType "swiss"]
[EventCountry "HUN"]
[SourceTitle "playchess.com"]
[Source "ChessBase"]
[SourceQuality "1"]
[TimeControl "40/5400+30:1800+30"]

1. e4 {[%emt 0:00:02]} c5 {[%emt 0:00:01]} 2. Nf3 {[%emt 0:00:06]} e6 {[%emt 0:00:06]} 3. d4 {[%emt 0:00:10]} cxd4 {[%emt 0:00:04]} 4. Nxd4 {[%emt 0:00:10]} a6 {[%emt 0:00:03]} 5. Bd3 {[%emt 0:00:11]} Qb6 {[%emt 0:00:16]} 6. Nb3 {[%emt 0:00:10]} Qc7 {[%emt 0:00:16]} 7. O-O {[%emt 0:00:25]} Nf6 {[%emt 0:00:25]} 8. c4 {[%emt 0:00:17]} d6 {[%emt 0:00:43]} 9. Nc3 {[%emt 0:00:12]} Nbd7 {[%emt 0:00:23]} 10. f4 {[%emt 0:00:14]} Be7 {[%emt 0:00:21]} 11. Qe2 {[%emt 0:00:37]} O-O {[%emt 0:00:19]} 12. Bd2 {[%emt 0:00:41]} b6 {[%emt 0:05:51]} 13. Rae1 {[%emt 0:00:38]} Nc5 {[%emt 0:03:32]} 14. Nxc5 {[%emt 0:02:29]} Qxc5+ {[%emt 0:02:45]} 15. Kh1 {[%emt 0:00:36]} g6 {[%emt 0:04:03]} 16. e5 {[%emt 0:12:41]} Ne8 {[%emt 0:04:59]} 17. Ne4 {[%emt 0:04:30]} Qc7 {[%emt 0:03:09]} 18. Bc3 {[%emt 0:02:45]} d5 {[%emt 0:07:34]} 19. cxd5 {[%emt 0:02:30]} exd5 {[%emt 0:00:19]} 20. Nf6+ {[%emt 0:01:01]} Nxf6 {[%emt 0:04:13]} 21. exf6 {[%emt 0:00:20]} Bd6 {[%emt 0:02:26]} 22. Qf2 {[%emt 0:04:26]} Rd8 {[%emt 0:04:51]} 23. Qh4 {[%emt 0:01:54]} Bb7 {[%emt 0:09:55]} 24. f5 {[%emt 0:01:17]} Rd7 {[%emt 0:10:49]} 25. fxg6 {[%emt 0:02:11]} fxg6 {[%emt 0:00:46]} 26. Bxg6 {[%emt 0:00:50]} 1-0

[Event "HUN-ch U8-U18 2019"]
[Site "Balatonlelle"]
[Date "2019.06.24"]
[Round "5.28"]
[White "Lehocz, Jozsef Jr."]
[Black "Panda, Barnabas"]
[Result "0-1"]
[ECO "B21"]
[WhiteElo "1382"]
[BlackElo "1722"]
[Annotator "NA"]
[PlyCount "58"]
[EventDate "2019.06.21"]
[EventType "swiss"]
[EventCountry "HUN"]
[SourceTitle "playchess.com"]
[Source "ChessBase"]
[SourceQuality "1"]
[TimeControl "40/5400+30:1800+30"]

1. e4 {[%emt 0:00:01]} c5 {[%emt 0:00:12]} 2. d4 {[%emt 0:00:05]} cxd4 {[%emt 0:00:18]} 3. c3 {[%emt 0:00:05]} dxc3 {[%emt 0:00:15]} 4. Nxc3 {[%emt 0:01:23]} Nc6 {[%emt 0:00:42]} 5. Nf3 {[%emt 0:02:04]} e6 {[%emt 0:00:50]} 6. Bc4 {[%emt 0:00:06]} a6 {[%emt 0:00:32]} 7. O-O {[%emt 0:00:12]} Nge7 {[%emt 0:01:33]} 8. Be3 {[%emt 0:02:44]} Ng6 {[%emt 0:01:14]} 9. Qe2 {[%emt 0:01:33]} Be7 {[%emt 0:01:50]} 10. Na4 Bd6 {[%emt 0:04:44]} 11. Rfd1 {[%emt 0:04:38]} Bc7 {[%emt 0:01:18]} 12. Nc3 {[%emt 0:00:32]} O-O {[%emt 0:00:35]} 13. Rac1 {[%emt 0:00:25]} b5 {[%emt 0:00:51]} 14. Bb3 {[%emt 0:01:26]} Bb7 {[%emt 0:01:35]} 15. Nd4 {[%emt 0:01:56]} Nxd4 {[%emt 0:04:30]} 16. Bxd4 {[%emt 0:00:22]} Rc8 {[%emt 0:01:49]} 17. Rd3 {[%emt 0:04:03]} Qg5 {[%emt 0:02:10]} 18. Be3 {[%emt 0:00:35]} Qe7 {[%emt 0:05:40]} 19. Qh5 {[%emt 0:18:24]} b4 {[%emt 0:03:32]} 20. Ne2 {[%emt 0:02:01]} Bxe4 {[%emt 0:00:38]} 21. Rd4 {[%emt 0:00:07]} Bb7 {[%emt 0:00:57]} 22. Rcd1 {[%emt 0:00:53]} d5 {[%emt 0:03:16]} 23. Qg4 {[%emt 0:09:22]} a5 {[%emt 0:06:35]} 24. h4 {[%emt 0:01:18]} Bb6 {[%emt 0:01:55]} 25. R4d2 {[%emt 0:00:45]} Bxe3 {[%emt 0:01:12]} 26. fxe3 {[%emt 0:00:07]} Qxh4 {[%emt 0:00:17]} 27. Qxh4 {[%emt 0:00:12]} Nxh4 {[%emt 0:00:14]} 28. Rd4 {[%emt 0:00:31]} Nf5 {[%emt 0:00:19]} 29. R4d3 {[%emt 0:00:15]} Ba6 {[%emt 0:00:25]} 0-1

[Event "HUN-ch U8-U18 2019"]
[Site "Balatonlelle"]
[Date "2019.06.24"]
[Round "5.29"]
[White "Karacsonyi, Bank"]
[Black "Csernyik, Mark"]
[Result "1-0"]
[ECO "B33"]
[WhiteElo "1529"]
[BlackElo "1704"]
[Annotator "NA"]
[PlyCount "99"]
[EventDate "2019.06.21"]
[EventType "swiss"]
[EventCountry "HUN"]
[SourceTitle "playchess.com"]
[Source "ChessBase"]
[SourceQuality "1"]
[TimeControl "40/5400+30:1800+30"]

1. e4 {[%emt 0:00:03]} c5 {[%emt 0:00:20]} 2. Nf3 {[%emt 0:00:08]} Nc6 {[%emt 0:00:07]} 3. d4 {[%emt 0:00:08]} cxd4 {[%emt 0:00:28]} 4. Nxd4 {[%emt 0:00:03]} Nf6 {[%emt 0:00:37]} 5. Nc3 {[%emt 0:00:07]} e5 {[%emt 0:00:40]} 6. Ndb5 {[%emt 0:00:05]} d6 {[%emt 0:00:35]} 7. Bg5 {[%emt 0:00:05]} a6 {[%emt 0:00:18]} 8. Na3 b5 {[%emt 0:02:45]} 9. Nd5 {[%emt 0:00:16]} Be7 {[%emt 0:00:20]} 10. Bxf6 {[%emt 0:00:08]} gxf6 {[%emt 0:02:17]} 11. c3 {[%emt 0:00:55]} O-O {[%emt 0:03:03]} 12. Nc2 f5 {[%emt 0:00:48]} 13. Bd3 {[%emt 0:01:02]} Be6 {[%emt 0:02:58]} 14. O-O {[%emt 0:00:37]} Bf6 {[%emt 0:02:36]} 15. Nxf6+ {[%emt 0:02:44]} Qxf6 {[%emt 0:00:53]} 16. exf5 {[%emt 0:00:19]} Bd5 {[%emt 0:01:54]} 17. Ne3 {[%emt 0:03:07]} Ne7 {[%emt 0:02:02]} 18. Qg4+ {[%emt 0:01:28]} Kh8 {[%emt 0:00:23]} 19. Nxd5 {[%emt 0:00:26]} Nxd5 {[%emt 0:00:14]} 20. Be4 {[%emt 0:01:23]} Nf4 {[%emt 0:02:36]} 21. Bxa8 {[%emt 0:01:06]} Rxa8 {[%emt 0:00:16]} 22. Qf3 {[%emt 0:01:33]} Rg8 {[%emt 0:00:23]} 23. g3 {[%emt 0:00:17]} Qxf5 {[%emt 0:00:46]} 24. Kh1 {[%emt 0:00:25]} Qh3 {[%emt 0:01:09]} 25. Qe4 {[%emt 0:01:30]} f5 {[%emt 0:02:38]} 26. Qf3 {[%emt 0:01:50]} Rg4 {[%emt 0:02:33]} 27. Qa8+ {[%emt 0:03:22]} Kg7 {[%emt 0:00:18]} 28. Qb7+ {[%emt 0:00:03]} Kf6 {[%emt 0:00:15]} 29. Qc6 {[%emt 0:03:15]} Kg7 {[%emt 0:04:35]} 30. Rg1 {[%emt 0:01:45]} e4 {[%emt 0:01:57]} 31. Qd7+ {[%emt 0:00:27]} Kf6 32. Qxd6+ {[%emt 0:01:33]} Ne6 {[%emt 0:02:49]} 33. Rae1 {[%emt 0:00:23]} Kf7 {[%emt 0:02:59]} 34. f3 {[%emt 0:02:00]} Rh4 {[%emt 0:01:03]} 35. Qd7+ {[%emt 0:02:22]} Kf6 {[%emt 0:00:17]} 36. gxh4 {[%emt 0:00:40]} Qxf3+ {[%emt 0:00:24]} 37. Rg2 {[%emt 0:00:06]} Nf4 {[%emt 0:00:13]} 38. Qg7+ {[%emt 0:01:53]} Ke6 {[%emt 0:00:08]} 39. Qh6+ {[%emt 0:00:59]} Ke5 {[%emt 0:00:31]} 40. Qg7+ {[%emt 0:00:00]} Ke6 {[%emt 0:00:00]} 41. Qg3 {[%emt 0:00:45]} Nxg2 {[%emt 0:01:22]} 42. Qxf3 {[%emt 0:00:13]} Nxe1 {[%emt 0:00:20]} 43. Qe3 {[%emt 0:00:11]} Nd3 {[%emt 0:01:11]} 44. Qh6+ {[%emt 0:02:33]} Ke5 {[%emt 0:00:10]} 45. Qg7+ {[%emt 0:00:05]} Kd5 {[%emt 0:00:37]} 46. Qf6 {[%emt 0:01:31]} Nf2+ {[%emt 0:00:09]} 47. Kg2 {[%emt 0:00:07]} Ng4 {[%emt 0:00:39]} 48. Qxf5+ {[%emt 0:00:05]} Ne5 {[%emt 0:00:17]} 49. Kg3 {[%emt 0:00:11]} Kd6 {[%emt 0:00:54]} 50. Qxe4 {[%emt 0:00:19]} 1-0

[Event "HUN-ch U8-U18 2019"]
[Site "Balatonlelle"]
[Date "2019.06.24"]
[Round "5.30"]
[White "Matyassy, Lazar"]
[Black "Kovacs, Kristof"]
[Result "1-0"]
[ECO "C44"]
[WhiteElo "1539"]
[BlackElo "1435"]
[Annotator "NA"]
[PlyCount "93"]
[EventDate "2019.06.21"]
[EventType "swiss"]
[EventCountry "HUN"]
[SourceTitle "playchess.com"]
[Source "ChessBase"]
[SourceQuality "1"]
[TimeControl "40/5400+30:1800+30"]

1. e4 {[%emt 0:00:04]} e5 {[%emt 0:00:10]} 2. Nf3 {[%emt 0:00:27]} Nc6 {[%emt 0:00:14]} 3. c3 {[%emt 0:00:18]} d5 {[%emt 0:00:40]} 4. Qa4 {[%emt 0:00:30]} dxe4 {[%emt 0:00:25]} 5. Nxe5 {[%emt 0:00:25]} Qd5 {[%emt 0:01:32]} 6. Nxc6 {[%emt 0:00:29]} Qxc6 {[%emt 0:00:46]} 7. Bb5 {[%emt 0:00:08]} Bd7 {[%emt 0:01:06]} 8. Bxc6 {[%emt 0:00:20]} Bxc6 {[%emt 0:00:06]} 9. Qc2 {[%emt 0:00:20]} O-O-O {[%emt 0:00:13]} 10. O-O {[%emt 0:00:32]} Nf6 {[%emt 0:00:12]} 11. Rd1 {[%emt 0:00:15]} Bc5 {[%emt 0:00:18]} 12. b4 {[%emt 0:00:25]} Bb6 {[%emt 0:00:07]} 13. h3 {[%emt 0:00:21]} g5 {[%emt 0:00:11]} 14. a4 {[%emt 0:00:09]} a6 {[%emt 0:00:03]} 15. d3 {[%emt 0:00:46]} exd3 {[%emt 0:00:10]} 16. Rxd3 {[%emt 0:00:13]} Rxd3 {[%emt 0:00:39]} 17. Qxd3 {[%emt 0:00:09]} Be4 {[%emt 0:00:47]} 18. Qe2 {[%emt 0:00:27]} Re8 {[%emt 0:00:57]} 19. Na3 {[%emt 0:01:08]} Nd5 {[%emt 0:00:44]} 20. Bd2 {[%emt 0:02:18]} h6 {[%emt 0:00:37]} 21. c4 {[%emt 0:00:20]} Nf6 {[%emt 0:00:23]} 22. c5 {[%emt 0:00:49]} Ba7 {[%emt 0:00:12]} 23. Be3 {[%emt 0:00:47]} Bb8 {[%emt 0:00:31]} 24. Bd4 {[%emt 0:01:04]} Nd5 {[%emt 0:00:13]} 25. f3 {[%emt 0:00:52]} Nf4 {[%emt 0:00:18]} 26. Qe1 {[%emt 0:00:17]} Bc6 {[%emt 0:00:15]} 27. Qf2 {[%emt 0:01:58]} Re2 {[%emt 0:00:40]} 28. Qf1 {[%emt 0:01:33]} Bxa4 {[%emt 0:00:44]} 29. Re1 {[%emt 0:00:30]} Ra2 {[%emt 0:00:31]} 30. Be3 {[%emt 0:02:13]} Rxa3 {[%emt 0:03:16]} 31. Bxf4 {[%emt 0:00:10]} Bb5 {[%emt 0:00:32]} 32. Qf2 {[%emt 0:00:25]} gxf4 {[%emt 0:01:08]} 33. Qd4 {[%emt 0:00:31]} Rd3 34. Qxf4 {[%emt 0:00:44]} b6 {[%emt 0:02:11]} 35. Qf5+ {[%emt 0:02:30]} Kb7 {[%emt 0:00:13]} 36. Qe4+ {[%emt 0:00:12]} Ka7 {[%emt 0:00:15]} 37. Qf4 {[%emt 0:02:38]} Rd7 {[%emt 0:00:44]} 38. Qxh6 {[%emt 0:00:37]} c6 {[%emt 0:00:40]} 39. Qg5 {[%emt 0:00:38]} Bc7 {[%emt 0:00:29]} 40. h4 {[%emt 0:00:00]} bxc5 {[%emt 0:00:00]} 41. bxc5 {[%emt 0:01:33]} Kb7 {[%emt 0:02:02]} 42. Qf6 {[%emt 0:04:05]} Bd8 {[%emt 0:00:44]} 43. Qf5 {[%emt 0:00:17]} Rc7 {[%emt 0:00:25]} 44. h5 {[%emt 0:00:20]} Bh4 {[%emt 0:00:42]} 45. Re8 {[%emt 0:00:47]} Bc4 {[%emt 0:00:40]} 46. h6 {[%emt 0:00:20]} Be6 {[%emt 0:00:37]} 47. Qb1+ {[%emt 0:00:14]} 1-0

[Event "HUN-ch U8-U18 2019"]
[Site "Balatonlelle"]
[Date "2019.06.24"]
[Round "5.31"]
[White "Havasi, Gergely Bulcsu"]
[Black "Pasti, Zsombor"]
[Result "1-0"]
[ECO "D02"]
[WhiteElo "1486"]
[BlackElo "1641"]
[Annotator "NA"]
[PlyCount "91"]
[EventDate "2019.06.21"]
[EventType "swiss"]
[EventCountry "HUN"]
[SourceTitle "playchess.com"]
[Source "ChessBase"]
[SourceQuality "1"]
[TimeControl "40/5400+30:1800+30"]

1. d4 {[%emt 0:00:01]} d5 {[%emt 0:00:03]} 2. Bf4 {[%emt 0:00:15]} Nf6 {[%emt 0:00:24]} 3. Nf3 {[%emt 0:00:23]} c5 {[%emt 0:00:10]} 4. e3 {[%emt 0:00:29]} Qb6 {[%emt 0:01:48]} 5. Qc1 {[%emt 0:00:20]} Bf5 {[%emt 0:02:21]} 6. Bd3 {[%emt 0:01:49]} Bg4 {[%emt 0:02:11]} 7. dxc5 {[%emt 0:01:37]} Qxc5 {[%emt 0:00:31]} 8. Nfd2 {[%emt 0:01:29]} e6 {[%emt 0:02:24]} 9. h3 {[%emt 0:02:03]} Bh5 {[%emt 0:01:09]} 10. Nb3 {[%emt 0:03:05]} Qc8 {[%emt 0:00:53]} 11. a3 {[%emt 0:02:06]} Nc6 {[%emt 0:03:27]} 12. Nc3 {[%emt 0:02:24]} e5 {[%emt 0:04:06]} 13. Bg5 {[%emt 0:03:19]} d4 {[%emt 0:05:04]} 14. exd4 {[%emt 0:00:18]} exd4 {[%emt 0:03:38]} 15. Bxf6 {[%emt 0:00:29]} gxf6 {[%emt 0:00:55]} 16. Ne2 {[%emt 0:01:40]} Qd8 {[%emt 0:03:20]} 17. Qd2 {[%emt 0:00:46]} Bg7 {[%emt 0:00:29]} 18. Bb5 {[%emt 0:01:54]} O-O {[%emt 0:04:15]} 19. O-O {[%emt 0:00:26]} f5 {[%emt 0:01:52]} 20. Bxc6 {[%emt 0:00:49]} bxc6 {[%emt 0:00:34]} 21. Nexd4 c5 22. Nxf5 {[%emt 0:06:49]} Bxb2 {[%emt 0:00:46]} 23. Ra2 {[%emt 0:00:44]} Qf6 {[%emt 0:03:34]} 24. Ng3 {[%emt 0:04:58]} Bg6 {[%emt 0:02:02]} 25. Nxc5 {[%emt 0:03:41]} Rad8 {[%emt 0:02:46]} 26. Nd7 {[%emt 0:01:19]} Qg7 {[%emt 0:04:32]} 27. Rd1 {[%emt 0:01:42]} f5 {[%emt 0:01:16]} 28. Qe2 {[%emt 0:06:39]} f4 {[%emt 0:01:19]} 29. Nxf8 {[%emt 0:00:42]} Rxf8 {[%emt 0:00:49]} 30. Nh5 {[%emt 0:01:19]} f3 {[%emt 0:01:10]} 31. Qe6+ {[%emt 0:01:36]} Qf7 {[%emt 0:01:56]} 32. Qxf7+ {[%emt 0:00:14]} Bxf7 {[%emt 0:00:04]} 33. Rxb2 {[%emt 0:00:17]} Bxh5 {[%emt 0:00:06]} 34. g4 {[%emt 0:00:12]} Bg6 {[%emt 0:00:05]} 35. c4 {[%emt 0:00:43]} Rc8 {[%emt 0:00:05]} 36. Rc1 {[%emt 0:00:20]} Bd3 {[%emt 0:00:10]} 37. Rc3 {[%emt 0:00:42]} Be2 {[%emt 0:00:43]} 38. Rbc2 {[%emt 0:00:29]} Rd8 {[%emt 0:00:16]} 39. Rc1 {[%emt 0:00:21]} h5 {[%emt 0:00:30]} 40. c5 {[%emt 0:00:47]} hxg4 {[%emt 0:01:32]} 41. hxg4 {[%emt 0:00:09]} Rd4 {[%emt 0:00:40]} 42. c6 {[%emt 0:00:59]} Rxg4+ {[%emt 0:00:22]} 43. Kh2 {[%emt 0:00:22]} Ba6 {[%emt 0:00:11]} 44. Rg1 {[%emt 0:00:30]} Rxg1 {[%emt 0:00:29]} 45. Kxg1 {[%emt 0:00:05]} Kf7 {[%emt 0:00:12]} 46. Rxf3+ {[%emt 0:00:13]} 1-0

[Event "HUN-ch U8-U18 2019"]
[Site "Balatonlelle"]
[Date "2019.06.24"]
[Round "5.32"]
[White "Vadkerti, Vince"]
[Black "Varga, Boldizsar"]
[Result "1/2-1/2"]
[ECO "C44"]
[WhiteElo "1558"]
[BlackElo "1804"]
[Annotator "NA"]
[PlyCount "86"]
[EventDate "2019.06.21"]
[EventType "swiss"]
[EventCountry "HUN"]
[SourceTitle "playchess.com"]
[Source "ChessBase"]
[SourceQuality "1"]
[TimeControl "40/5400+30:1800+30"]

1. e4 {[%emt 0:00:06]} e5 {[%emt 0:00:18]} 2. Nf3 {[%emt 0:00:08]} Nc6 {[%emt 0:00:22]} 3. d4 {[%emt 0:00:14]} exd4 {[%emt 0:00:48]} 4. Bc4 {[%emt 0:00:09]} h6 {[%emt 0:01:41]} 5. Nxd4 {[%emt 0:01:50]} Nf6 {[%emt 0:02:03]} 6. Nxc6 {[%emt 0:01:38]} dxc6 {[%emt 0:03:08]} 7. Bxf7+ {[%emt 0:00:49]} Ke7 {[%emt 0:01:26]} 8. Qxd8+ {[%emt 0:00:59]} Kxd8 {[%emt 0:00:08]} 9. Nc3 {[%emt 0:01:17]} Bb4 {[%emt 0:00:53]} 10. f3 {[%emt 0:01:27]} Ke7 {[%emt 0:01:08]} 11. Bb3 {[%emt 0:00:49]} c5 {[%emt 0:05:17]} 12. Bd2 {[%emt 0:01:54]} a6 {[%emt 0:03:34]} 13. a3 {[%emt 0:02:20]} Bxc3 {[%emt 0:01:56]} 14. Bxc3 {[%emt 0:00:26]} b5 {[%emt 0:00:28]} 15. O-O-O {[%emt 0:03:21]} c4 {[%emt 0:01:55]} 16. Ba2 {[%emt 0:00:21]} Be6 {[%emt 0:01:02]} 17. b3 {[%emt 0:02:10]} cxb3 {[%emt 0:05:58]} 18. Bxb3 {[%emt 0:01:26]} Bxb3 {[%emt 0:00:35]} 19. cxb3 {[%emt 0:00:09]} c6 {[%emt 0:00:58]} 20. b4 {[%emt 0:02:16]} Rac8 {[%emt 0:02:56]} 21. Bd4 {[%emt 0:02:05]} Rhg8 {[%emt 0:04:28]} 22. g3 {[%emt 0:03:19]} Nd7 {[%emt 0:07:04]} 23. Bc5+ {[%emt 0:02:11]} Nxc5 {[%emt 0:00:32]} 24. bxc5 {[%emt 0:00:05]} Rgf8 {[%emt 0:01:02]} 25. f4 {[%emt 0:00:23]} Rf6 {[%emt 0:01:34]} 26. e5 {[%emt 0:00:38]} Re6 {[%emt 0:02:17]} 27. Rd6 {[%emt 0:01:07]} Kf7 {[%emt 0:04:45]} 28. Rxe6 {[%emt 0:01:55]} Kxe6 {[%emt 0:00:28]} 29. Rd1 {[%emt 0:00:49]} g6 {[%emt 0:03:04]} 30. Rd6+ {[%emt 0:02:41]} Kf7 {[%emt 0:00:32]} 31. Rd7+ {[%emt 0:00:35]} Ke6 {[%emt 0:00:47]} 32. Rd6+ {[%emt 0:01:42]} Kf7 {[%emt 0:00:12]} 33. g4 {[%emt 0:01:12]} Rc7 {[%emt 0:01:25]} 34. Kd2 {[%emt 0:04:16]} g5 {[%emt 0:05:24]} 35. f5 {[%emt 0:00:40]} Kg7 {[%emt 0:01:34]} 36. e6 {[%emt 0:01:49]} Kf6 {[%emt 0:00:24]} 37. Rd7 {[%emt 0:02:37]} Rxd7+ {[%emt 0:00:19]} 38. exd7 {[%emt 0:00:16]} Ke7 {[%emt 0:00:08]} 39. Kc3 {[%emt 0:07:34]} a5 {[%emt 0:02:33]} 40. Kd4 {[%emt 0:00:00]} Kxd7 {[%emt 0:00:00]} 41. Ke5 {[%emt 0:03:24]} Ke7 {[%emt 0:02:26]} 42. h3 {[%emt 0:01:40]} Kf7 {[%emt 0:02:49]} 43. a4 {[%emt 0:06:37]} b4 {[%emt 0:01:05]} 1/2-1/2